Cogmind - Beta 15 @@@ ROGUE MODE // 2025.05.18 @ 15:06:26 Player: Ciaphas Result: Destroyed by G-47 Trooper with Particle Gun Performance ------------- Evolutions (2) 1000 Regions Visited (8) 1600 Robots Destroyed (100) 500 Value Destroyed (3422) 3422 Prototype IDs (44) 880 Alien Tech Used (0) 0 Bonus (846) 846 TOTAL SCORE: 8248 Bonus ------- High Alert Combat Kills 8 Entered Garrisons 200 Used RIF Installer 500 Aligned with FarCom 300 Friendly Fire -162 Cogmind --------- Core Integrity 0/550 Matter 240/300 Energy 100/100 System Corruption 0% Temperature Cool (18) Movement Core (700) Ox13 Location -8/Storage Parts ------- > --- POWER (1) -------- (None) > --- PROPULSION (3) --- (None) > --- UTILITY (5) ------ High-capacity Storage Unit Machine Analyzer Relay Coupler [Grunt] (21) > --- WEAPON (2) ------- (None) > --- INVENTORY (20) --- Armored Treads Improved Flight Unit Improved Flight Unit Improved VTOL Module Improved VTOL Module Large Matter Pod (150) Light Armor Plating Improved Light Armor Plating Hacking Suite Authchip [Propulsion] Authchip [Device] Relay Coupler [Swarmer] (24) Relay Coupler [Brawler] (26) Relay Coupler [Duelist] (22) Relay Coupler [Hunter] (19) High-powered Shotgun Missile Launcher Scatter Rocket Array Heavy Mace Peak State ------------ > --- POWER ------------ Enhanced Nuclear Core > --- PROPULSION ------- Aluminum Leg VSS Leg VSS Leg > --- UTILITY ---------- Improved Heat Sink High-capacity Storage Unit Machine Analyzer Improved Light Armor Plating Hardlight Generator > --- WEAPON ----------- Improved Medium Laser Advanced Beam Rifle > --- INVENTORY -------- Improved Flight Unit Improved Flight Unit Improved Flight Unit Improved VTOL Module Medium Storage Unit Large Matter Pod Structural Scanner Improved Light Armor Plating Hacking Suite Authchip [Propulsion] Authchip [Device] Relay Coupler [NC] Relay Coupler [Swarmer] Relay Coupler [Grunt] Relay Coupler [Hunter] High-powered Shotgun Missile Launcher Datajack Mace [Rating: 37] Favorites ----------- Power Enhanced Nuclear Core Engine Ion Engine Power Core Enhanced Nuclear Core Propulsion Light Treads Treads Light Treads Leg Aluminum Leg Wheel Compact Wheel Hover Unit Combat Airjet Flight Unit Improved Flight Unit Utility High-capacity Storage Unit Device Structural Scanner Storage High-capacity Storage Unit Processor Machine Analyzer Hackware Hacking Suite Protection Improved Light Armor Plating Weapon Advanced Beam Rifle Energy Gun Advanced Beam Rifle Ballistic Gun Assault Rifle Ballistic Cannon Light Cannon Launcher Rocket Launcher Impact Weapon Mace Special Melee Weapon Datajack Build | -11 -10 -10 -10 -9 -8 -8 -8 -8 ------- Run | Yrd Mat Min Exi Min Mat Gar Mat Sto Slots Evolved 4 | . . . . . 4 . . . Power . | . . . . . . . . . Propulsion 1 | . . . . . 1 . . . Utility 3 | . . . . . 3 . . . Weapon . | . . . . . . . . . Parts Attached 87 | 2 23 9 2 . 34 10 3 4 Power 9 | . 4 2 . . 3 . . . Engine 6 | . 4 1 . . 1 . . . Core 3 | . . 1 . . 2 . . . Reactor . | . . . . . . . . . Propulsion 31 | . 8 3 . . 14 4 . 2 Treads 15 | . 3 1 . . 11 . . . Leg 11 | . 4 1 . . . 4 . 2 Wheel 2 | . 1 . . . 1 . . . Hover 1 | . . 1 . . . . . . Flight 2 | . . . . . 2 . . . Utility 24 | 1 4 1 1 . 10 4 2 1 Device 11 | 1 1 . 1 . 6 2 . . Storage 3 | . 2 1 . . . . . . Processor 1 | . . . . . 1 . . . Hackware 3 | . . . . . 1 . 1 1 Protection 6 | . 1 . . . 2 2 1 . Artifact . | . . . . . . . . . Weapon 23 | 1 7 3 1 . 7 2 1 1 Energy Gun 9 | . 4 . . . 5 . . . Energy Cannon . | . . . . . . . . . Ballistic Gun 2 | 1 . . . . 1 . . . Ballistic Cannon 3 | . 2 1 . . . . . . Launcher 6 | . 1 2 . . . 2 . 1 Special Weapon . | . . . . . . . . . Impact Weapon 2 | . . . . . 1 . 1 . Slashing Weapon . | . . . . . . . . . Piercing Weapon . | . . . . . . . . . Special Melee Weapon 1 | . . . 1 . . . . . Unidentified Prototypes 7 | . . . . . 6 . . 1 Parts Lost 32 | . 1 5 . . 13 3 . 10 Power 2 | . . . . . 1 . . 1 Propulsion 14 | . . 2 . . 4 3 . 5 Utility 9 | . . 1 . . 6 . . 2 Weapon 7 | . 1 2 . . 2 . . 2 Highest Loss Streak 10 | . 1 4 . . 5 1 . 10 To Critical Strikes . | . . . . . . . . . Average Backups 14 | 5 8 9 7 8 15 19 19 19 Power . | 1 1 1 2 2 1 . . . Propulsion 3 | 3 3 1 1 1 4 4 4 4 Utility 6 | . 2 3 3 4 5 10 11 10 Weapon 2 | 1 1 2 . . 2 3 3 3 Tool/Special . | . . . . . . . . . Unused Backups 30 | 6 2 . . . 4 3 1 14 Power 5 | 1 1 . . . 3 . . . Propulsion 8 | 3 . . . . . . . 5 Utility 12 | 1 . . . . . 3 . 8 Weapon 5 | 1 1 . . . 1 . 1 1 Tool/Special . | . . . . . . . . . Average Slot Usage (%) 98 | . 99 99 99 100 96 99 100 94 Engine 5 | . 14 11 . . 5 . . . Core 5 | . . 2 14 14 3 9 9 8 Treads 12 | . 9 14 14 14 18 11 . . Leg 9 | . 16 . . . . 13 27 24 Wheel 4 | . 1 10 14 14 7 1 . . Device 14 | . 12 4 6 14 16 18 22 16 Storage 13 | . 14 23 21 14 12 9 9 9 Processor 5 | . . . . . 7 9 9 9 Hackware 2 | . . . . . 4 1 2 9 Protection 2 | . 1 . . . 2 7 1 . Energy Gun 12 | . 19 . . . 14 13 9 5 Ballistic Gun 2 | . 6 . . . . 1 2 6 Ballistic Cannon 2 | . 1 17 . . . . . . Launcher 3 | . . 10 15 19 2 . . 3 Peak Build Rating 37 | 9 10 14 18 18 35 37 35 36 Average Rating 22 | 7 8 9 14 18 25 34 33 32 On Entrance 19 | 6 9 10 11 18 18 30 36 33 Naked Turns . | . . . . . . . . . Heaviest Build 73 | 12 52 53 58 60 73 65 63 61 Greatest Support 60 | 20 40 40 16 16 60 60 34 34 Greatest Overweight (x) 6 | . 3 3 3 3 4 6 1 5 Average Overweight (x) 1 | . . 2 3 3 2 1 1 1 Largest Inventory Capacity 20 | 8 20 20 20 20 20 20 20 20 Average Capacity 18 | 8 11 20 20 20 20 20 20 20 Most Carried 20 | 5 13 11 8 8 20 20 20 20 Average Carried 14 | 4 8 9 7 8 15 19 19 19 Final Capacity 20 | 8 20 20 20 20 20 20 20 20 Final Carried 20 | 5 11 7 8 8 20 20 20 19 Class Distribution -------------------- 47% | Mutant 14% | Scavenger-Skirmisher 11% | Scavenger-Mutant 10% | Bothacker-Mutant 6% | Bothacker-Assassin 5% | Bothacker-Skirmisher 3% | Skirmisher Dominant Class ---------------- Mutant | -10/Materials Mutant | -10/Mines Mutant | -10/Exiles Mutant | -9/Mines Scavenger-Skirmisher | -8/Materials Bothacker-Mutant | -8/Garrison Bothacker-Assassin | -8/Materials Bothacker-Skirmisher | -8/Storage Resources | -11 -10 -10 -10 -9 -8 -8 -8 -8 ----------- Run | Yrd Mat Min Exi Min Mat Gar Mat Sto Matter Collected 2727 | 256 574 331 . . 985 261 173 147 Remotely . | . . . . . . . . . Salvage Created 3199 | 83 821 153 . . 1352 418 222 150 Parts 190 | 6 56 9 . . 80 17 11 11 Haulers Intercepted 6 | . 2 . . . 4 . . . Recyclers Shooed 6 | . . . . . 5 . 1 . Parts Field Recycled . | . . . . . . . . . Retrieved Matter . | . . . . . . . . . Parts Self-Destructed . | . . . . . . . . . Prevented . | . . . . . . . . . Kills | -11 -10 -10 -10 -9 -8 -8 -8 -8 ------- Run | Yrd Mat Min Exi Min Mat Gar Mat Sto Combat Hostiles Destroyed 88 | . 22 21 . . 27 13 2 3 Guns 42 | . 15 . . . 16 6 2 3 Cannons 5 | . . 5 . . . . . . AOE 40 | . 6 16 . . 11 7 . . Classes Destroyed 16 | 2 7 2 . . 2 3 . . Worker 2 | . 1 . . . . . 1 . Builder 4 | . 1 . . . 2 . 1 . Tunneler 2 | 1 1 . . . . . . . Hauler 6 | . 2 . . . 4 . . . Recycler 4 | 1 . . . . 2 . 1 . Operator 3 | . 1 . . . 2 . . . Watcher 6 | . 3 . . . 2 . . 1 Swarmer 20 | . 9 . . . 7 4 . . Grunt 32 | . 13 4 . . 9 4 . 2 Brawler 1 | . . . . . . 1 . . Sentry 13 | . . . . . 10 . 2 1 Demolisher 2 | . . 2 . . . . . . Specialist 1 | . . . . . . 1 . . Hunter 3 | . . . . . . 3 . . Heavy 1 | . . . . . 1 . . . Assembled 15 | . . 15 . . . . . . Best Kill Streak 14 | 2 7 14 . . 7 4 2 3 Combat Bots Only 14 | . 6 14 . . 5 4 1 2 Max Kills in Single Turn 5 | 1 4 5 . . 4 4 1 1 Gunslinging . | . . . . . . . . . Exploded 5 | . 3 5 . . 3 4 . . Melee . | . . . . . . . . . Uniques/NPCs Destroyed . | . . . . . . . . . Combat | -11 -10 -10 -10 -9 -8 -8 -8 -8 -------- Run | Yrd Mat Min Exi Min Mat Gar Mat Sto Hostile Shots Fired 463 | . 114 29 . . 182 70 8 60 Missed 114 | . 34 2 . . 44 25 1 8 Hits 349 | . 80 27 . . 138 45 7 52 Melee 1 | . . . . . . 1 . . Projectile 348 | . 80 27 . . 138 44 7 52 AOE 14 | . . 14 . . . . . . Critical Strikes 13 | . . 1 . . 9 1 . 2 Damage Taken 5347 | . 825 781 . . 2249 506 78 908 Core 772 | . 134 84 . . 181 14 21 338 Absorbed by Shields 204 | . . . . . . 176 28 . Redirected to Shielding 6 | . 6 . . . . . . . Core Remaining (%) 56 | 100 . . . 12 . . . . Volleys Fired 295 | 12 102 23 . . 104 38 6 10 Largest 2 | 1 2 2 . . 2 2 2 2 Hottest 126 | 20 90 63 . . 126 117 86 86 Shots Fired 461 | 12 161 42 . . 154 62 10 20 Gun 385 | 12 157 . . . 137 50 9 20 Cannon 32 | . . 32 . . . . . . Launcher 44 | . 4 10 . . 17 12 1 . Special . | . . . . . . . . . Kinetic 126 | 12 63 32 . . 4 . 5 10 Thermal 291 | . 94 . . . 133 50 4 10 Explosive 44 | . 4 10 . . 17 12 1 . Electromagnetic . | . . . . . . . . . Robot Hit Streak 18 | 3 11 10 . . 18 15 5 7 Robot Miss Streak 8 | 2 4 1 . . 8 4 1 2 Penetration Max . | . . . . . . . . . Secondary Targets 1 | . 1 . . . . . . . Max Gunslinging Chain 1 | . 1 . . . . . . . Shots Hit Robots 313 | 6 106 26 4 1 109 36 10 15 Core Hits 191 | 3 47 43 . . 65 21 3 9 Critical Kills . | . . . . . . . . . Critical Parts Destroyed . | . . . . . . . . . Critical Strikes 6 | . . 1 . . 3 1 . 1 Burn 5 | . . . . . 3 1 . 1 Blast 1 | . . 1 . . . . . . Melee Attacks 21 | . . . 4 1 1 2 8 5 Impact 13 | . . . . . 1 2 7 3 Slashing . | . . . . . . . . . Piercing . | . . . . . . . . . Sneak Attacks 8 | . . . 4 1 . . 3 . Combat Hostiles . | . . . . . . . . . Follow-up Attacks . | . . . . . . . . . Damage Inflicted 7921 | 92 1672 1388 . . 2866 1320 294 289 Guns 4302 | 92 1274 . . . 1832 702 113 289 Cannons 426 | . . 416 . . . 10 . . Explosions 2971 | . 398 968 . . 997 608 . . Melee 169 | . . . . . . . 169 . Ramming 53 | . . 4 . . 37 . 12 . Kinetic 1366 | 92 596 416 . . 60 . 53 149 Thermal 3352 | . 678 . . . 1772 702 60 140 Explosive 2971 | . 398 968 . . 997 608 . . Electromagnetic . | . . . . . . . . . Impact 179 | . . . . . . 10 169 . Slashing . | . . . . . . . . . Piercing . | . . . . . . . . . Highest Corruption . | . . . . . . . . . Average Corruption . | . . . . . . . . . Corruption Purged . | . . . . . . . . . Corruption Blocked . | . . . . . . . . . Overload Shots . | . . . . . . . . . Overflow Damage 174 | . 8 23 . . 21 18 104 . Projectiles . | . . . . . . . . . Explosions 70 | . 8 23 . . 21 18 . . Melee 104 | . . . . . . . 104 . Knockbacks 8 | . . 6 . . . . 2 . Impact 2 | . . . . . . . 2 . Kinetic 6 | . . 6 . . . . . . Secondary . | . . . . . . . . . Self-Inflicted Damage 266 | . . . . . 207 59 . . Shots 10 | . . . . . 8 2 . . Rammed 7 | . . 1 . . 6 . . . Targets Rammed 9 | . . 1 . . 6 . 2 . Kicked 2 | . . . . . . . 2 . Crushed . | . . . . . . . . . Highest Temperature 355 | . 282 27 . . 355 122 . 15 Average Temperature 82 | . 64 9 . . 112 41 . 15 Received Heat Transfer 1608 | . 366 69 . . 675 120 18 360 Effects 6 | . . . . . 6 . . . Interference 6 | . . . . . 6 . . . Siege Activations . | . . . . . . . . . Martial Activations . | . . . . . . . . . Shielding Activations . | . . . . . . . . . Robots Disrupted . | . . . . . . . . . Combat Hostiles . | . . . . . . . . . Robots Corrupted 3 | . . . . . . . 3 . Combat Hostiles . | . . . . . . . . . Parts Fried 5 | . . . . . . . 5 . Impact Corruptions 5 | . . . . . . . 5 . Robots Melted 1 | . 1 . . . . . . . Combat Hostiles 1 | . 1 . . . . . . . Parts Melted 16 | . 2 . . . 10 4 . . Heat Transferred 7607 | . 1798 . . . 3885 1480 111 333 Parts Sabotaged . | . . . . . . . . . Parts Stolen . | . . . . . . . . . Parts Stripped . | . . . . . . . . . Power Chain Reactions . | . . . . . . . . . Alert | -11 -10 -10 -10 -9 -8 -8 -8 -8 ------- Run | Yrd Mat Min Exi Min Mat Gar Mat Sto Maximum Alert Level 3 | . 1 . . . 1 3 1 . Low Security (%) 60 | 100 97 100 . 100 55 17 15 100 Level 1 31 | . 2 . . . 44 46 84 . Level 2 5 | . . . . . . 24 . . Level 3 2 | . . . . . . 12 . . Level 4 . | . . . . . . . . . Level 5 . | . . . . . . . . . High Security . | . . . . . . . . . Max Security . | . . . . . . . . . Peak Influence 730 | 10 209 65 . . 378 730 355 128 Initial 355 | . . 52 . . . 130 355 79 Average 204 | 1 119 18 . . 207 400 251 80 Influence Increases 2668 | 10 645 185 . . 973 630 105 120 Destroy 0b10 Robot/C 1460 | . 440 120 . . 540 260 40 60 Destroy 0b10 Robot/NC 135 | 10 45 . . . 60 . 15 5 Destroy Leader 364 | . 100 30 . . 172 20 20 22 Successful Hack 43 | . 12 . . . 14 . . 17 Select Force Hacks 30 | . 30 . . . . . . . Disable Machine 90 | . . . . . 75 . . 15 Anti-Garrison Action 250 | . . . . . . 250 . . Destroy Structure 266 | . 18 35 . . 97 100 15 1 Lose Combat Pursuer 30 | . . . . . 15 . 15 . Influence Decreases 2668 | 10 510 311 9 . 772 101 645 310 Entered New Map 649 | . . 83 9 . . 71 375 111 Time Decay 1608 | 10 500 196 . . 492 . 270 140 Lost Part 261 | . 10 32 . . 130 30 . 59 Purge Threat 150 | . . . . . 150 . . . Squads Dispatched 15 | . 6 . . . 8 . . 1 Investigation 5 | . 4 . . . . . . 1 Extermination . | . . . . . . . . . Reinforcement 6 | . 2 . . . 4 . . . Assault . | . . . . . . . . . Garrison 4 | . . . . . 4 . . . Intercept . | . . . . . . . . . Searches Triggered . | . . . . . . . . . Construction Impeded . | . . . . . . . . . Haulers Reinforced . | . . . . . . . . . Active Scanning Responses . | . . . . . . . . . Cargo Convoy Interrupts . | . . . . . . . . . Stealth | -11 -10 -10 -10 -9 -8 -8 -8 -8 --------- Run | Yrd Mat Min Exi Min Mat Gar Mat Sto Distress Signals 6 | . 1 . . . 3 . 1 1 Communications Jammed . | . . . . . . . . . Distress Signals . | . . . . . . . . . Times Spotted 125 | . 31 23 . . 45 10 5 11 Peak Tracking Total 18 | . 4 18 . . 6 4 2 4 Tactical Retreats 3 | . . 1 . . 1 . 1 . Traps | -11 -10 -10 -10 -9 -8 -8 -8 -8 ------- Run | Yrd Mat Min Exi Min Mat Gar Mat Sto Traps Triggered 9 | . 3 . . . 1 2 . 3 Indirectly . | . . . . . . . . . Trap Hack Attempts 5 | . . . . . . . 5 . Triggered . | . . . . . . . . . Disarmed . | . . . . . . . . . Reprogrammed 1 | . . . . . . . 1 . Reused . | . . . . . . . . . Traps Extracted . | . . . . . . . . . Installed . | . . . . . . . . . Triggered . | . . . . . . . . . Machines | -11 -10 -10 -10 -9 -8 -8 -8 -8 ---------- Run | Yrd Mat Min Exi Min Mat Gar Mat Sto Machines Disabled 10 | . 1 . . . 5 3 . 1 Max in Single Turn 1 | . 1 . . . 1 1 . 1 Garrison Relay 3 | . . . . . . 3 . . Machines Repaired . | . . . . . . . . . Machines Dismantled . | . . . . . . . . . Machines Sabotaged . | . . . . . . . . . Overloaded Fab Kills . | . . . . . . . . . Hacking | -11 -10 -10 -10 -9 -8 -8 -8 -8 --------- Run | Yrd Mat Min Exi Min Mat Gar Mat Sto Machines Accessed 20 | . 5 1 1 . 6 1 3 3 Terminals 15 | . 4 1 . . 4 1 2 3 Fabricators . | . . . . . . . . . Repair Stations . | . . . . . . . . . Recycling Units 2 | . 1 . . . . . 1 . Scanalyzers 1 | . . . . . 1 . . . Garrison Access 1 | . . . . . 1 . . . Total Hacks 61 | . 19 5 1 . 18 2 5 11 Successful 32 | . 12 2 1 . 10 . 1 6 Failed 29 | . 7 3 . . 8 2 4 5 Catastrophic 4 | . 2 1 . . . . . 1 Database Lockouts . | . . . . . . . . . Manual 34 | . 12 4 1 . 10 . 4 3 Terminals 53 | . 17 5 . . 14 2 4 11 Fabricators . | . . . . . . . . . Repair Stations . | . . . . . . . . . Recycling Units 3 | . 2 . . . . . 1 . Scanalyzers 2 | . . . . . 2 . . . Garrison Access 2 | . . . . . 2 . . . Terminal Hacks 13 | . 4 1 1 . 3 . . 4 Part Schematic 1 | . . . . . . . . 1 Open Door 2 | . . . . . . . . 2 Alert Level 2 | . . . . . 2 . . . Unreport Threat 1 | . . . . . 1 . . . Locate Traps 1 | . 1 . . . . . . . Dispatch Records 2 | . 1 1 . . . . . . Transport Status 1 | . 1 . . . . . . . Hauler Manifests 2 | . 1 . . . . . . 1 Proto ID Catalog 1 | . . . 1 . . . . . Fabricator Hacks . | . . . . . . . . . Repair Station Hacks . | . . . . . . . . . Recycling Unit Hacks 2 | . 1 . . . . . 1 . Report Inventory 2 | . 1 . . . . . 1 . Scanalyzer 2 | . . . . . 2 . . . Insert Component 1 | . . . . . 1 . . . Analyze 1 | . . . . . 1 . . . Garrison Access Hacks 1 | . . . . . 1 . . . Unlock Access 1 | . . . . . 1 . . . Unauthorized Hacks 14 | . 7 1 . . 4 . . 2 Terminals 13 | . 6 1 . . 4 . . 2 Botnet 5 | . 2 1 . . 1 . . 1 Skim 8 | . 4 . . . 3 . . 1 Fabricators . | . . . . . . . . . Repair Stations . | . . . . . . . . . Recycling Units 1 | . 1 . . . . . . . Tunnel 1 | . 1 . . . . . . . Scanalyzers . | . . . . . . . . . Garrison Access . | . . . . . . . . . Data Cores Recovered . | . . . . . . . . . Used . | . . . . . . . . . Hacking Detections 14 | . 4 1 . . 4 1 2 2 Full Trace Events 1 | . . . . . . . . 1 Feedback Events . | . . . . . . . . . Feedback Blocked . | . . . . . . . . . Robot Schematics Acquired . | . . . . . . . . . Robots Built . | . . . . . . . . . Authchips . | . . . . . . . . . Time . | . . . . . . . . . Total Robot Build Rating . | . . . . . . . . . Part Schematics Acquired 2 | . . . . . 1 . . 1 Parts Built . | . . . . . . . . . Authchips . | . . . . . . . . . Time . | . . . . . . . . . Total Part Build Rating . | . . . . . . . . . Parts Repaired . | . . . . . . . . . Time . | . . . . . . . . . Parts Recycled . | . . . . . . . . . Recycled Matter . | . . . . . . . . . Retrieved Matter . | . . . . . . . . . Retrieved Components . | . . . . . . . . . Parts Scanalyzed 1 | . . . . . 1 . . . Part Schematics Acquired 1 | . . . . . 1 . . . Parts Damaged . | . . . . . . . . . Bothacking | -11 -10 -10 -10 -9 -8 -8 -8 -8 ------------ Run | Yrd Mat Min Exi Min Mat Gar Mat Sto Used RIF Installer 1 | . . . . . . 1 . . Robots Hacked 7 | . . . 4 1 . . 1 1 Non-combat 5 | . . . 3 1 . . 1 . Combat 2 | . . . 1 . . . . 1 Robot Hacks Applied 7 | . . . 4 1 . . 1 1 parse_system 5 | . . . 4 . . . 1 . no_distress 1 | . . . . 1 . . . . amplify_resonance 1 | . . . . . . . . 1 Relay Couplers Released 12 | . . . . . . 12 . . Machine Destruction 12 | . . . . . . 12 . . Attached 2 | . . . . . . . 1 1 Fabnet Peak Effective % . | . . . . . . . . . Robots Rewired . | . . . . . . . . . Allies Hacked . | . . . . . . . . . Hacks Repelled . | . . . . . . . . . Allies | -11 -10 -10 -10 -9 -8 -8 -8 -8 -------- Run | Yrd Mat Min Exi Min Mat Gar Mat Sto Total Allies 3 | . . 3 . . . . . . Largest Group 3 | . . 3 . . . . . . Highest-Rated Group 40 | . . 40 . . . . . . Highest-Rated Ally 16 | . . 16 . . . . . . Total Orders . | . . . . . . . . . Ally Attacks 6 | . . 6 . . . . . . Total Damage 43 | . . 43 . . . . . . Kills . | . . . . . . . . . Allies Corrupted . | . . . . . . . . . Allies Melted . | . . . . . . . . . Intel | -11 -10 -10 -10 -9 -8 -8 -8 -8 ------- Run | Yrd Mat Min Exi Min Mat Gar Mat Sto Active Infowar (turns) 5501 | 24 1222 211 1 . 1789 1365 584 305 Terrain 573 | 24 338 211 . . . . . . Structural 3230 | . 884 . . . 1533 2 542 269 Seismic 434 | . . . . . 434 . . . Machine Analysis 3670 | . . . . . 1416 1365 584 305 Cloaking 7 | . . . 1 . 6 . . . Robot Analysis Total . | . . . . . . . . . Derelict Logs Recovered 1 | . . 1 . . . . . . Drone Launches . | . . . . . . . . . Drone Recoveries . | . . . . . . . . . Exploration | -11 -10 -10 -10 -9 -8 -8 -8 -8 ------------- Run | Yrd Mat Min Exi Min Mat Gar Mat Sto Turns Passed 6625 | 71 1382 642 362 39 1875 1365 584 305 Spaces Moved 3086 | 36 728 319 244 22 800 611 211 115 Core . | . . . . . . . . . Treads 589 | . 139 29 . . 275 146 . . Legs 1198 | 36 495 . . . . 341 211 115 Wheels 1299 | . 94 290 244 22 525 124 . . Hover . | . . . . . . . . . Flight . | . . . . . . . . . Fastest Speed 120 | 120 120 145 145 145 145 145 183 183 Average Speed 164 | 120 135 154 145 145 175 190 183 192 Slowest Speed 540 | 120 240 320 145 145 320 540 183 470 Overloaded Moves . | . . . . . . . . . Propulsion Burnouts . | . . . . . . . . . Robots Hopped . | . . . . . . . . . Potential Cave-ins . | . . . . . . . . . Cave-ins Triggered . | . . . . . . . . . Exploration Rate (%) 44 | 4 95 71 64 7 70 43 17 25 Regions Visited 8 Branch Regions 4 Pre-discovered Areas 1 | . 1 . . . . . . . Known Exits Taken 1 | . . . . . 1 . . . Unknown Exits Taken 6 | 1 1 1 1 1 . . 1 . Scrap Searched 2 | . . 2 . . . . . . Spaces Dug 16 | . . . . . 1 . 15 . Terrain Destroyed 342 | . 19 77 . . 134 97 15 . Melee 5 | . . . . . 1 . 4 . Projectile . | . . . . . . . . . AOE 337 | . 19 77 . . 133 97 11 . Terrain Rammed . | . . . . . . . . . Walls Destroyed . | . . . . . . . . . Machines Disabled . | . . . . . . . . . Actions | -11 -10 -10 -10 -9 -8 -8 -8 -8 --------- Run | Yrd Mat Min Exi Min Mat Gar Mat Sto Total 4117 | 52 957 425 250 28 1107 746 384 168 Wait 379 | . 64 48 . 5 72 39 133 18 Move 3078 | 35 727 318 243 21 799 610 210 115 Hop . | . . . . . . . . . Pick Up 51 | 1 7 2 . . 22 12 5 2 Fast Attach 44 | 1 6 4 1 . 21 2 1 8 Attach 29 | . 1 7 . . 15 4 1 1 Detach 31 | . 5 6 1 . 17 2 . . Swap 99 | 1 28 10 1 1 29 17 7 5 Drop 66 | 2 17 6 . . 21 10 6 4 Fire 295 | 12 102 23 . . 104 38 6 10 Melee 21 | . . . 4 1 1 2 8 5 Ram 1 | . . . . . 1 . . . Kick 2 | . . . . . . . 2 . Crush 6 | . . 1 . . 5 . . . Escape Stasis 10 | . . . . . . 10 . . Rewire . | . . . . . . . . . Trap 5 | . . . . . . . 5 . Miscellaneous . | . . . . . . . . . Route ------- -11/Scrapyard -10/Materials (discovered 6 exits: [*Mat x3] / *Min x2 / [*Sub]) -10/Mines (discovered 3 exits: [*Mat x2] / *Exi) -10/Exiles -9/Mines -8/Materials (discovered 3 exits: [*Fac] / *Sto / Gar) -8/Garrison -8/Materials -8/Storage History --------- Turn | Location | Event 3 | -11/Scrapyard | Discovered new exit (range 1) 72 | -11/Scrapyard | Entered Materials 217 | -10/Materials | Discovered new exit (range 9) 300 | -10/Materials | Build established: Mutant 350 | -10/Materials | Discovered new exit (range 13) 649 | -10/Materials | Discovered new exit (range 16) 662 | -10/Materials | Discovered new exit (range 10) 893 | -10/Materials | Discovered new exit (range 10) 965 | -10/Materials | Discovered new exit (range 9) 1021 | -10/Materials | Build established: Scavenger-Mutant 1202 | -10/Materials | Core integrity fell below 50% 1449 | -10/Materials | Build established: Mutant 1454 | -10/Materials | Entered Mines 1480 | -10/Mines | Assembled infested the area 1485 | -10/Mines | Assisted by a Guerilla fighting off Assembled 1525 | -10/Mines | Destroyed 14 combat bots 1807 | -10/Mines | Discovered new exit (range 7) 1820 | -10/Mines | Assisted by bots powering up and referring to "LRC-V3" 1862 | -10/Mines | Received a Rocket Launcher from a helpful Derelict 1886 | -10/Mines | Core integrity fell below 20% 1900 | -10/Mines | Lost 3 allies 1916 | -10/Mines | Lost 4 parts (2n2w) 1930 | -10/Mines | Discovered new exit (range 10) 2006 | -10/Mines | Learned Materials stockpile data 2090 | -10/Mines | Deemed a non-threat by the Exiles lab entrance 2090 | -10/Mines | Discovered new exit (range 5) 2096 | -10/Mines | Entered Exiles 2131 | -10/Exiles | Met 8R-AWN 2160 | -10/Exiles | Met EX-HEX 2202 | -10/Exiles | Met EX-BIN 2233 | -10/Exiles | Aligned with FarCom system 2234 | -10/Exiles | Given EX-Vault access code 2268 | -10/Exiles | Opened EX-Vault 2280 | -10/Exiles | Found Cloak of Protection 2310 | -10/Exiles | Warned to stay clear of 0b10 Research branches 2352 | -10/Exiles | Met EX-DEC 2442 | -10/Exiles | Discovered new exit (range 12) 2458 | -10/Exiles | Left Exiles lab with Cloak of Protection 2458 | -10/Exiles | Entered Mines 2487 | -9/Mines | Discovered new exit (range 8) 2497 | -9/Mines | Entered Materials 2497 | -8/Materials | Evolved 4 slots: Propulsion x1, Utility x3 2789 | -8/Materials | Discovered new exit (range 5) 3034 | -8/Materials | Garrison activated, responded to threat 3136 | -8/Materials | Lost 5 parts (2n3u) 3322 | -8/Materials | Lost 3 parts (1n2u) 3376 | -8/Materials | Lost 3 parts (1n1u1w) 3803 | -8/Materials | Build established: Scavenger-Skirmisher 4070 | -8/Materials | Garrison activated, responded to threat 4185 | -8/Materials | Discovered new exit (range 6) 4370 | -8/Materials | Identified exit to Garrison 4372 | -8/Materials | Entered Garrison 4648 | -8/Garrison | Build established: Mutant 4754 | -8/Garrison | Installed Relay Interface Framework 4966 | -8/Garrison | Triggered checkpoint 5030 | -8/Garrison | Garrison Relay disabled 5032 | -8/Garrison | Triggered checkpoint 5222 | -8/Garrison | Triggered checkpoint 5240 | -8/Garrison | Garrison Relay disabled 5280 | -8/Garrison | Triggered checkpoint 5375 | -8/Garrison | Build established: Bothacker-Mutant 5412 | -8/Garrison | Discovered new exit (range 11) 5513 | -8/Garrison | Garrison Relay disabled 5737 | -8/Garrison | Entered Materials 6084 | -8/Materials | Discovered new exit (range 7) 6321 | -8/Materials | Entered Storage 6455 | -8/Storage | Found Prototype Launcher 6455 | -8/Storage | Identified Scatter Rocket Array 6599 | -8/Storage | Core integrity fell below 50% 6621 | -8/Storage | Core integrity fell below 20% 6626 | -8/Storage | Destroyed by G-47 Trooper with Particle Gun Last Messages --------------- 06605_ Imp. Heat Sink destroyed. 06605_ Critical hit (Burn: +37). 06606_ K-01 Serf collects debris. 06606_ Acquired Carbon-fiber Leg. 06607_ U-05 Engineer lays Concrete. 06608_ Carbon-fiber Leg destroyed. 06609_ U-05 Engineer lays Concrete. 06609_ K-01 Serf collects debris. 06611_ U-05 Engineer lays Concrete. 06614_ K-01 Serf collects debris. 06614_ Aluminum Leg destroyed. 06614_ U-05 Engineer lays Concrete. 06617_ K-01 Serf collects debris. 06617_ U-05 Engineer lays Concrete. 06618_ Relay Coupler [NC] destroyed. 06618_ U-05 Engineer lays Concrete. 06620_ K-01 Serf collects debris. 06621_ U-05 Engineer lays Concrete. 06622_ Adv. Beam Rifle destroyed. 06624_ K-01 Serf collects debris. Map ----- +----------------------------------------------------+ | ???????????????????????????###### ##### | | ???????????????????????????##= + ##??? | | ????????????????###############T# ^ ##??? | | ????????????????################# ^ ##### | | ????????????????## #### ######## | | ???????????????? # / #### # # | | ???????????????? # ! # + """# | | ???????????????? # # # """# | | ???????????????? #% # # """# | | ???????????????? # + # # | | ???????????????? # ] # %######## | | ???????????????? ######+###+## ######## | | ???????????????? ##### ##??? | | ???????????????? + ######## ##??? | | ???????????????? ##### # # ##??? | | ????????????????###### / + ##??? | | ????????????????????## # ###+###??? | | ????????????????????## # ##T ###??? | | ????????????????????## # ### ##???? | | ????????????????????## # ###]##???? | | ????????????????????## #############???? | | ????????????????????## ##/#############???? | | ????????????????????## # g ##????????? | | ????????????????????## # ##????????? | | ????????????????????## g# """"" ##????????? | | ???????????????????? # u@ ] ]" ##????????? | | ???????????????????? + u%u """"" ##????????? | | ??""????Y??????????? # % k """? ##????????? | | ??""???????????????? # Y [[[" ##????????? | | ??T"?????????????? # # """ " ##????????? | | ??""??????????????#### # ##????????? | | ??""??????????????#### ###########????????? | | ????????????????????# ##########????????? | | ??????????????????? ???????????????????? | | ?????????????????? ???????????????????? | | ????????????????? * ???????????????????? | | ????????????????##### ???????????????????? | | ?????????????????#######????????????????????? | | ????????????????????????????????????????????? | | ????????????????????????????????????????????? | | ????????????????????????????????????????????? | | ????????????????????????????????????????????? | | ????????????????????????????????????????????? | | ????????????????????????????????????????????? | | ????????????????????????????????????????????? | | ????????????????????????????????????????????? | | ????????????????????????????????????????????? | | ????????????????????????????????????????????? | | ????????????????????????????????????????????? | | ????????????????????????????????????????????? | +----------------------------------------------------+ Best States ------------- Heat Dissipation 45 Energy Generation 17 Energy Capacity 380 Matter Stores 300 Matter Capacity 300 Sight Range 16 Terrain Scan Range 16 Terrain Scan Density 10 Armor Coverage 225 Utility Shielding 33 Evasion (%) 55 Recoil Reduction 3 Kinecelleration 30 Offensive Hacking 10 Relay Coupler Types 2 Relay Coupler Value 46 Authchip Count 2 Item Schematics ----------------- Hacking Suite | -8/Materials | Scanalyzed Arm. Huge Wheel | -8/Storage | Hacked Robot Schematics ------------------ None Fabricated ------------ Nothing Repaired ---------- Nothing Alien Tech Used ----------------- None Achievements -------------- Hehehe Challenges ------------ None Game ------ Seed ForceNetworkedDetonator Manual? 0 Play Time 01:37:56 Cumulative 44.3 hours Start 2025.05.18 @ 12:04:36 End 2025.05.18 @ 15:06:26 Sessions 1 Manual Loads 0 Difficulty Rogue Special Mode None Game No. 69 Rogue 69 Adventurer 0 Explorer 0 Win Type - Total 1 Types 1/0/0/0/0/0/0/0/0/0 Lore% 28 Gallery% 31 Achievement% 35 Wizard Run 0 Options --------- Layout 0 ASCII 0 Keyboard 0 Movement Numpad Keybinds 0 Fullscreen 2 Font 24/Tamsyn Map View 76x50 Zoom Use 0% Tactical HUD 1 Map Filters NONE Filters NONE Steam 1 RUN: e20e46c4-24ac-4d56-ba8c-21bd81952374